[Event "Early-Titled-Tuesday-Blitz-September-26-2023"]
[Site "Chess.com"]
[Date "2023.09.26"]
[Round "2"]
[White "Road2GM3000"]
[Black "Sadykov_Ramil"]
[Result "1-0"]
[WhiteElo "2372"]
[BlackElo "2590"]
[TimeControl "180+1"]
[EndTime "8:16:45 PDT"]
[Termination "Road2GM3000 won by resignation"]

1. d4 {[%clk 0:03:00.9]} 1... d6 {[%clk 0:02:53]} 2. c4 {[%clk 0:03:01.1]} 2...
e5 {[%clk 0:02:52.6]} 3. dxe5 {[%clk 0:03:00]} 3... dxe5 {[%clk 0:02:53.5]} 4.
Qc2 {[%clk 0:02:59]} 4... Bc5 {[%clk 0:02:45.3]} 5. Nc3 {[%clk 0:02:58.2]} 5...
Nf6 {[%clk 0:02:41]} 6. Nf3 {[%clk 0:02:50.5]} 6... Nbd7 {[%clk 0:02:39.4]} 7.
Bg5 {[%clk 0:02:48.3]} 7... h6 {[%clk 0:02:37.2]} 8. Bh4 {[%clk 0:02:48]} 8...
c6 {[%clk 0:02:37.3]} 9. e3 {[%clk 0:02:47.9]} 9... Qc7 {[%clk 0:02:29.6]} 10.
Be2 {[%clk 0:02:47.3]} 10... g5 {[%clk 0:02:11.5]} 11. Bg3 {[%clk 0:02:46.4]}
11... Nh5 {[%clk 0:02:10.7]} 12. O-O-O {[%clk 0:02:42.6]} 12... Nxg3 {[%clk
0:02:07.7]} 13. hxg3 {[%clk 0:02:42.2]} 13... g4 {[%clk 0:01:54.7]} 14. Nh4
{[%clk 0:02:37.6]} 14... Nf8 {[%clk 0:01:40.2]} 15. Nf5 {[%clk 0:02:34.2]} 15...
Rg8 {[%clk 0:01:10]} 16. Rxh6 {[%clk 0:02:21.8]} 16... Ne6 {[%clk 0:01:06.4]}
17. Ne4 {[%clk 0:02:16.6]} 17... Be7 {[%clk 0:01:05.2]} 18. Ned6+ {[%clk
0:01:39.2]} 18... Kf8 {[%clk 0:00:55.4]} 19. c5 {[%clk 0:01:19.9]} 19... b6
{[%clk 0:00:46.5]} 20. b4 {[%clk 0:00:55.8]} 20... bxc5 {[%clk 0:00:26.3]} 21.
bxc5 {[%clk 0:00:54.6]} 21... Rb8 {[%clk 0:00:26.9]} 22. Nxc8 {[%clk 0:00:54.1]}
22... Rxc8 {[%clk 0:00:24.6]} 23. Nd6 {[%clk 0:00:53.7]} 23... Rd8 {[%clk
0:00:22.5]} 24. Qf5 {[%clk 0:00:51.5]} 24... Bxd6 {[%clk 0:00:22]} 25. Rxe6
{[%clk 0:00:47]} 25... Bxc5 {[%clk 0:00:19.5]} 26. Rxd8+ {[%clk 0:00:44]} 26...
Qxd8 {[%clk 0:00:20.4]} 27. Rxc6 {[%clk 0:00:43.9]} 27... Ba3+ {[%clk
0:00:15.5]} 28. Kc2 {[%clk 0:00:44.5]} 28... Qe7 {[%clk 0:00:08.8]} 29. Rc8+
{[%clk 0:00:40.6]} 29... Kg7 {[%clk 0:00:09]} 30. Qxg4+ {[%clk 0:00:41.1]} 1-0

[Event "Early-Titled-Tuesday-Blitz-September-26-2023"]
[Site "Chess.com"]
[Date "2023.09.26"]
[Round "2"]
[White "Nemegejas"]
[Black "Aariow"]
[Result "0-1"]
[WhiteElo "2789"]
[BlackElo "2620"]
[TimeControl "180+1"]
[EndTime "8:16:51 PDT"]
[Termination "Aariow won by resignation"]

1. b3 {[%clk 0:03:00.9]} 1... d5 {[%clk 0:02:58.8]} 2. Bb2 {[%clk 0:03:00.9]}
2... c5 {[%clk 0:02:59.3]} 3. e3 {[%clk 0:02:58.2]} 3... a6 {[%clk 0:02:59.9]}
4. d4 {[%clk 0:02:56.7]} 4... cxd4 {[%clk 0:02:59.5]} 5. exd4 {[%clk 0:02:56.7]}
5... Nf6 {[%clk 0:02:58.5]} 6. Bd3 {[%clk 0:02:52.7]} 6... Bg4 {[%clk 0:02:57]}
7. Ne2 {[%clk 0:02:43.7]} 7... e6 {[%clk 0:02:56.4]} 8. c3 {[%clk 0:02:38.2]}
8... Bd6 {[%clk 0:02:56.1]} 9. Qc2 {[%clk 0:02:31.5]} 9... O-O {[%clk
0:02:54.8]} 10. Ng3 {[%clk 0:02:31.8]} 10... Nc6 {[%clk 0:02:50.2]} 11. h3
{[%clk 0:02:31.1]} 11... Bf5 {[%clk 0:02:46.9]} 12. Nxf5 {[%clk 0:02:15.4]}
12... exf5 {[%clk 0:02:46]} 13. Bxf5 {[%clk 0:02:16.3]} 13... Re8+ {[%clk
0:02:42.5]} 14. Kf1 {[%clk 0:02:12.6]} 14... Qa5 {[%clk 0:02:31]} 15. Nd2 {[%clk
0:01:27.8]} 15... g6 {[%clk 0:02:16]} 16. Bd3 {[%clk 0:01:28]} 16... Rac8 {[%clk
0:02:04.7]} 17. Qd1 {[%clk 0:01:27.6]} 17... Nh5 {[%clk 0:00:59.8]} 18. a3
{[%clk 0:01:15.9]} 18... Nf4 {[%clk 0:00:53]} 19. Nf3 {[%clk 0:01:16.3]} 19...
Qb6 {[%clk 0:00:47.6]} 20. Bc2 {[%clk 0:01:16]} 20... Qb5+ {[%clk 0:00:45.2]}
21. c4 {[%clk 0:01:10.8]} 21... dxc4 {[%clk 0:00:40.7]} 22. a4 {[%clk
0:01:11.4]} 22... Qd5 {[%clk 0:00:37.8]} 23. g3 {[%clk 0:01:07.8]} 23... Ne2
{[%clk 0:00:32]} 24. Kg2 {[%clk 0:01:04.8]} 24... c3 {[%clk 0:00:32.6]} 25. Bc1
{[%clk 0:00:30.5]} 25... Ncxd4 {[%clk 0:00:32.7]} 26. Qd3 {[%clk 0:00:31.2]}
26... Qxf3+ {[%clk 0:00:24.3]} 27. Qxf3 {[%clk 0:00:31.6]} 27... Nxf3 {[%clk
0:00:25.2]} 28. Bd1 {[%clk 0:00:31.8]} 28... Nxc1 {[%clk 0:00:23.4]} 29. Bxf3
{[%clk 0:00:27]} 29... Nxb3 {[%clk 0:00:23.5]} 30. Bxb7 {[%clk 0:00:27.8]} 30...
Nxa1 {[%clk 0:00:22.3]} 0-1

[Event "Early-Titled-Tuesday-Blitz-September-26-2023"]
[Site "Chess.com"]
[Date "2023.09.26"]
[Round "2"]
[White "ElenaPershina"]
[Black "noblerone"]
[Result "1-0"]
[WhiteElo "2312"]
[BlackElo "2495"]
[TimeControl "180+1"]
[EndTime "8:16:57 PDT"]
[Termination "ElenaPershina won by checkmate"]

1. c4 {[%clk 0:03:00.9]} 1... c6 {[%clk 0:02:59.4]} 2. g3 {[%clk 0:03:00.1]}
2... d5 {[%clk 0:03:00.3]} 3. Bg2 {[%clk 0:03:00.3]} 3... Nf6 {[%clk 0:03:00.8]}
4. Nf3 {[%clk 0:03:00.2]} 4... Bf5 {[%clk 0:03:01.2]} 5. cxd5 {[%clk 0:02:49.5]}
5... cxd5 {[%clk 0:03:00.5]} 6. O-O {[%clk 0:02:49.1]} 6... e6 {[%clk
0:02:59.3]} 7. Qb3 {[%clk 0:02:46.8]} 7... Qb6 {[%clk 0:02:58.4]} 8. Qxb6 {[%clk
0:02:35]} 8... axb6 {[%clk 0:02:59.3]} 9. d3 {[%clk 0:02:34.6]} 9... Nc6 {[%clk
0:02:57.9]} 10. Nc3 {[%clk 0:02:33.7]} 10... Bb4 {[%clk 0:02:55.7]} 11. Bd2
{[%clk 0:02:28.3]} 11... O-O {[%clk 0:02:54.6]} 12. a3 {[%clk 0:02:27.4]} 12...
Be7 {[%clk 0:02:54.3]} 13. Rfc1 {[%clk 0:02:26.1]} 13... Na5 {[%clk 0:02:52.5]}
14. Rc2 {[%clk 0:02:16.2]} 14... Nb3 {[%clk 0:02:50.7]} 15. Re1 {[%clk
0:02:10.9]} 15... Bg4 {[%clk 0:02:48.1]} 16. Ne5 {[%clk 0:02:04.9]} 16... Bh5
{[%clk 0:02:47.7]} 17. Bg5 {[%clk 0:01:52.2]} 17... Rfc8 {[%clk 0:02:13.9]} 18.
g4 {[%clk 0:01:08.6]} 18... Bg6 {[%clk 0:02:11]} 19. h4 {[%clk 0:00:26.2]} 19...
h6 {[%clk 0:02:08.1]} 20. Nxg6 {[%clk 0:00:16.8]} 20... fxg6 {[%clk 0:02:06.8]}
21. Bxf6 {[%clk 0:00:16.1]} 21... gxf6 {[%clk 0:02:06.3]} 22. e3 {[%clk
0:00:13]} 22... Kf7 {[%clk 0:01:58.8]} 23. d4 {[%clk 0:00:12.4]} 23... Na5
{[%clk 0:01:44.5]} 24. f4 {[%clk 0:00:11.1]} 24... Nc4 {[%clk 0:01:36.7]} 25.
Kf2 {[%clk 0:00:11.6]} 25... f5 {[%clk 0:01:36.1]} 26. Nxd5 {[%clk 0:00:11.5]}
26... Nd6 {[%clk 0:01:22.2]} 27. Rxc8 {[%clk 0:00:09.8]} 27... Rxc8 {[%clk
0:01:23.1]} 28. Nxb6 {[%clk 0:00:09.6]} 28... Rc7 {[%clk 0:01:19.5]} 29. g5
{[%clk 0:00:08.2]} 29... h5 {[%clk 0:01:17.5]} 30. Re2 {[%clk 0:00:07.3]} 30...
Rc1 {[%clk 0:01:16.2]} 31. Na4 {[%clk 0:00:07.2]} 31... b5 {[%clk 0:01:13]} 32.
Nc5 {[%clk 0:00:06.7]} 32... Nc4 {[%clk 0:01:10]} 33. Nd3 {[%clk 0:00:06.3]}
33... Rb1 {[%clk 0:01:05.3]} 34. d5 {[%clk 0:00:06.4]} 34... Bd6 {[%clk
0:00:57.6]} 35. dxe6+ {[%clk 0:00:06.2]} 35... Kxe6 {[%clk 0:00:58.5]} 36. e4
{[%clk 0:00:04.8]} 36... Bc7 {[%clk 0:00:54.3]} 37. exf5+ {[%clk 0:00:04.7]}
37... Kxf5 {[%clk 0:00:55.2]} 38. Bh3# {[%clk 0:00:04.9]} 1-0

[Event "Early-Titled-Tuesday-Blitz-September-26-2023"]
[Site "Chess.com"]
[Date "2023.09.26"]
[Round "2"]
[White "IamSchrodingersCat"]
[Black "ApoIogiA"]
[Result "1-0"]
[WhiteElo "2509"]
[BlackElo "2294"]
[TimeControl "180+1"]
[EndTime "8:17:00 PDT"]
[Termination "IamSchrodingersCat won by resignation"]

1. e4 {[%clk 0:03:00.9]} 1... c5 {[%clk 0:02:54.7]} 2. Nf3 {[%clk 0:02:59.2]}
2... Nc6 {[%clk 0:02:53.4]} 3. d4 {[%clk 0:02:59.6]} 3... cxd4 {[%clk
0:02:54.3]} 4. Nxd4 {[%clk 0:03:00]} 4... e5 {[%clk 0:02:54.9]} 5. Nb5 {[%clk
0:02:59.8]} 5... d6 {[%clk 0:02:53.7]} 6. N1c3 {[%clk 0:02:59.3]} 6... Nf6
{[%clk 0:02:53.9]} 7. Bg5 {[%clk 0:02:58.2]} 7... a6 {[%clk 0:02:48.8]} 8. Na3
{[%clk 0:02:58.3]} 8... b5 {[%clk 0:02:47]} 9. Bxf6 {[%clk 0:02:57.5]} 9... gxf6
{[%clk 0:02:44.4]} 10. Nd5 {[%clk 0:02:58.4]} 10... Bg7 {[%clk 0:02:41.4]} 11.
Bd3 {[%clk 0:02:57.4]} 11... Ne7 {[%clk 0:02:35.1]} 12. Nxe7 {[%clk 0:02:57.1]}
12... Qxe7 {[%clk 0:02:36]} 13. c4 {[%clk 0:02:57.5]} 13... f5 {[%clk
0:02:29.2]} 14. O-O {[%clk 0:02:56.4]} 14... O-O {[%clk 0:02:28.2]} 15. Re1
{[%clk 0:02:50.7]} 15... fxe4 {[%clk 0:01:58.3]} 16. Bxe4 {[%clk 0:02:51.6]}
16... Rb8 {[%clk 0:01:58.7]} 17. b3 {[%clk 0:02:45.6]} 17... f5 {[%clk
0:01:53.1]} 18. Bd5+ {[%clk 0:02:40.6]} 18... Kh8 {[%clk 0:01:53.5]} 19. Nc2
{[%clk 0:02:35.1]} 19... Qg5 {[%clk 0:01:36.9]} 20. Rb1 {[%clk 0:02:17.8]} 20...
Rf6 {[%clk 0:01:17.9]} 21. Qc1 {[%clk 0:02:01.2]} 21... Qg6 {[%clk 0:01:03.9]}
22. f3 {[%clk 0:01:46.2]} 22... f4 {[%clk 0:00:54]} 23. Be4 {[%clk 0:01:42]}
23... Qg5 {[%clk 0:00:52.4]} 24. Nb4 {[%clk 0:01:35.5]} 24... Bh3 {[%clk
0:00:42.4]} 25. Qd2 {[%clk 0:01:25.3]} 25... Rg8 {[%clk 0:00:31.7]} 26. Bd5
{[%clk 0:01:15.4]} 26... Rg6 {[%clk 0:00:27.5]} 27. Re2 {[%clk 0:01:09.8]} 27...
Rf8 {[%clk 0:00:18.1]} 28. Be4 {[%clk 0:01:02.2]} 28... Rh6 {[%clk 0:00:18.4]}
29. cxb5 {[%clk 0:00:50.3]} 29... axb5 {[%clk 0:00:19.3]} 30. a4 {[%clk
0:00:50]} 30... bxa4 {[%clk 0:00:18.8]} 31. bxa4 {[%clk 0:00:50.9]} 31... Bd7
{[%clk 0:00:18.9]} 32. g4 {[%clk 0:00:45.7]} 32... Rh3 {[%clk 0:00:13.7]} 33. a5
{[%clk 0:00:35]} 33... Bxg4 {[%clk 0:00:13.7]} 34. fxg4 {[%clk 0:00:35.9]} 34...
f3 {[%clk 0:00:14.3]} 35. Qxg5 {[%clk 0:00:35]} 1-0

[Event "Early-Titled-Tuesday-Blitz-September-26-2023"]
[Site "Chess.com"]
[Date "2023.09.26"]
[Round "2"]
[White "ARMQUEEN"]
[Black "twofoxniel"]
[Result "0-1"]
[WhiteElo "2424"]
[BlackElo "2683"]
[TimeControl "180+1"]
[EndTime "8:17:02 PDT"]
[Termination "twofoxniel won by resignation"]

1. e4 {[%clk 0:03:00.9]} 1... d5 {[%clk 0:02:58.4]} 2. exd5 {[%clk 0:02:57.9]}
2... Nf6 {[%clk 0:02:58.8]} 3. d4 {[%clk 0:02:57.2]} 3... Bg4 {[%clk 0:02:59]}
4. f3 {[%clk 0:02:55.5]} 4... Bf5 {[%clk 0:02:58.8]} 5. c4 {[%clk 0:02:53.6]}
5... e6 {[%clk 0:02:58.8]} 6. dxe6 {[%clk 0:02:52.2]} 6... Nc6 {[%clk
0:02:58.4]} 7. Be3 {[%clk 0:02:50.7]} 7... Bb4+ {[%clk 0:02:56.1]} 8. Nc3 {[%clk
0:02:50.3]} 8... Qe7 {[%clk 0:02:56.5]} 9. Qd2 {[%clk 0:02:35.7]} 9... O-O-O
{[%clk 0:02:46.7]} 10. Nge2 {[%clk 0:02:32.9]} 10... Bxe6 {[%clk 0:02:23.7]} 11.
Ng3 {[%clk 0:02:25.6]} 11... Rhe8 {[%clk 0:02:20]} 12. Kf2 {[%clk 0:02:19.9]}
12... Nxd4 {[%clk 0:02:03.7]} 13. Bd3 {[%clk 0:02:08.9]} 13... Nc6 {[%clk
0:01:44.6]} 14. Qe2 {[%clk 0:02:07.5]} 14... Ne5 {[%clk 0:01:35.1]} 15. Rhd1
{[%clk 0:01:55.9]} 15... Rxd3 {[%clk 0:01:27.2]} 16. Rxd3 {[%clk 0:01:39.8]}
16... Bxc4 {[%clk 0:01:26.9]} 17. Rad1 {[%clk 0:01:29.8]} 17... Nxd3+ {[%clk
0:01:26.3]} 18. Rxd3 {[%clk 0:01:26]} 18... Bxd3 {[%clk 0:01:26.3]} 19. Qxd3
{[%clk 0:01:25.5]} 19... Kb8 {[%clk 0:01:20.3]} 20. Nce4 {[%clk 0:01:17.6]}
20... Nxe4+ {[%clk 0:01:19.6]} 21. Nxe4 {[%clk 0:01:16.5]} 21... f5 {[%clk
0:01:20.2]} 22. Nc3 {[%clk 0:01:08]} 22... Bc5 {[%clk 0:01:20.3]} 23. Nd5 {[%clk
0:01:05.8]} 23... Bxe3+ {[%clk 0:01:19.5]} 24. Nxe3 {[%clk 0:01:05.4]} 24... f4
{[%clk 0:01:16.5]} 25. Nc2 {[%clk 0:01:04.1]} 25... Rd8 {[%clk 0:01:05.2]} 26.
Qc3 {[%clk 0:00:59.6]} 26... Qh4+ {[%clk 0:01:03.7]} 27. Ke2 {[%clk 0:00:54.3]}
27... Qxh2 {[%clk 0:01:01.5]} 28. Qxg7 {[%clk 0:00:51.8]} 28... Qg1 {[%clk
0:00:54.4]} 29. Ne1 {[%clk 0:00:49.4]} 29... a6 {[%clk 0:00:49.5]} 30. Qc3
{[%clk 0:00:43]} 30... Re8+ {[%clk 0:00:47.3]} 31. Kd1 {[%clk 0:00:42.2]} 31...
h5 {[%clk 0:00:42.7]} 32. Qd2 {[%clk 0:00:36.2]} 32... h4 {[%clk 0:00:42.2]} 33.
Qc3 {[%clk 0:00:33.4]} 33... Qf1 {[%clk 0:00:36.7]} 34. Qd2 {[%clk 0:00:30.1]}
34... b6 {[%clk 0:00:36.4]} 35. Qc3 {[%clk 0:00:29]} 35... Qe2+ {[%clk
0:00:36.7]} 36. Kc1 {[%clk 0:00:26.7]} 36... Qxe1+ {[%clk 0:00:36.9]} 0-1

[Event "Early-Titled-Tuesday-Blitz-September-26-2023"]
[Site "Chess.com"]
[Date "2023.09.26"]
[Round "2"]
[White "PavelChernomordik"]
[Black "Irina_Mikhaylova"]
[Result "1-0"]
[WhiteElo "2500"]
[BlackElo "2285"]
[TimeControl "180+1"]
[EndTime "8:17:06 PDT"]
[Termination "PavelChernomordik won by resignation"]

1. e4 {[%clk 0:03:00.9]} 1... c5 {[%clk 0:03:00.3]} 2. Nc3 {[%clk 0:03:00.6]}
2... Nc6 {[%clk 0:03:00.7]} 3. Bb5 {[%clk 0:03:00.3]} 3... Nd4 {[%clk
0:03:00.1]} 4. Bc4 {[%clk 0:03:00]} 4... e6 {[%clk 0:03:00]} 5. Nge2 {[%clk
0:02:58.5]} 5... Ne7 {[%clk 0:03:00.4]} 6. O-O {[%clk 0:02:57.8]} 6... Nec6
{[%clk 0:03:00.8]} 7. d3 {[%clk 0:02:53.9]} 7... Be7 {[%clk 0:03:01]} 8. a3
{[%clk 0:02:49.2]} 8... O-O {[%clk 0:03:00.9]} 9. f4 {[%clk 0:02:42.8]} 9... Rb8
{[%clk 0:02:53.4]} 10. Ng3 {[%clk 0:02:18.5]} 10... b5 {[%clk 0:02:51.6]} 11.
Ba2 {[%clk 0:02:17.7]} 11... b4 {[%clk 0:02:52]} 12. Nce2 {[%clk 0:02:16.5]}
12... Qb6 {[%clk 0:02:21.6]} 13. Be3 {[%clk 0:02:07.4]} 13... b3 {[%clk
0:02:05.2]} 14. cxb3 {[%clk 0:02:03.1]} 14... Nxb3 {[%clk 0:02:02.6]} 15. Rb1
{[%clk 0:01:58.3]} 15... d5 {[%clk 0:01:36.8]} 16. f5 {[%clk 0:01:50.9]} 16...
dxe4 {[%clk 0:01:11.7]} 17. dxe4 {[%clk 0:01:43.3]} 17... exf5 {[%clk
0:01:06.8]} 18. Nxf5 {[%clk 0:01:34.8]} 18... Bf6 {[%clk 0:01:07]} 19. Nc3
{[%clk 0:01:16.7]} 19... Bxf5 {[%clk 0:00:57.6]} 20. Rxf5 {[%clk 0:01:15.5]}
20... Ncd4 {[%clk 0:00:57.6]} 21. Nd5 {[%clk 0:01:14.4]} 21... Qd8 {[%clk
0:00:57.2]} 22. Rxf6 {[%clk 0:00:52.9]} 22... gxf6 {[%clk 0:00:53]} 23. Bh6
{[%clk 0:00:52.3]} 23... f5 {[%clk 0:00:43.7]} 24. Qh5 {[%clk 0:00:40.6]} 24...
Kh8 {[%clk 0:00:27.1]} 25. Bxf8 {[%clk 0:00:32.3]} 25... Qxf8 {[%clk 0:00:26.7]}
26. exf5 {[%clk 0:00:28.6]} 26... f6 {[%clk 0:00:22.7]} 27. Re1 {[%clk
0:00:25.5]} 27... Re8 {[%clk 0:00:12.2]} 28. Rxe8 {[%clk 0:00:24.5]} 1-0

[Event "Early-Titled-Tuesday-Blitz-September-26-2023"]
[Site "Chess.com"]
[Date "2023.09.26"]
[Round "2"]
[White "melissa_guez"]
[Black "Balla_Tamas"]
[Result "0-1"]
[WhiteElo "2072"]
[BlackElo "2417"]
[TimeControl "180+1"]
[EndTime "8:17:07 PDT"]
[Termination "Balla_Tamas won by resignation"]

1. e4 {[%clk 0:03:00.9]} 1... c5 {[%clk 0:03:00.4]} 2. Nf3 {[%clk 0:03:00.4]}
2... Nc6 {[%clk 0:03:00.7]} 3. d4 {[%clk 0:03:00]} 3... cxd4 {[%clk 0:03:01.6]}
4. Nxd4 {[%clk 0:03:00.2]} 4... e5 {[%clk 0:03:02.3]} 5. Nb5 {[%clk 0:02:59.2]}
5... d6 {[%clk 0:03:02.7]} 6. c4 {[%clk 0:02:58.5]} 6... Be7 {[%clk 0:03:02.6]}
7. N1c3 {[%clk 0:02:56.7]} 7... a6 {[%clk 0:03:03.1]} 8. Na3 {[%clk 0:02:56.4]}
8... f5 {[%clk 0:03:04]} 9. exf5 {[%clk 0:02:50.5]} 9... Bxf5 {[%clk 0:03:03.9]}
10. Bd3 {[%clk 0:02:49.4]} 10... Be6 {[%clk 0:03:04.6]} 11. O-O {[%clk
0:02:48.5]} 11... Nf6 {[%clk 0:03:04.7]} 12. f4 {[%clk 0:02:43.4]} 12... O-O
{[%clk 0:02:40.8]} 13. f5 {[%clk 0:02:38]} 13... Bf7 {[%clk 0:02:39.3]} 14. g4
{[%clk 0:02:37.6]} 14... d5 {[%clk 0:02:25.8]} 15. g5 {[%clk 0:02:23.4]} 15...
Bh5 {[%clk 0:02:24.7]} 16. Be2 {[%clk 0:02:15.4]} 16... Bxe2 {[%clk 0:02:15.4]}
17. Qxe2 {[%clk 0:02:16.3]} 17... Ne4 {[%clk 0:02:12.1]} 18. Nxd5 {[%clk
0:01:20.9]} 18... Nxg5 {[%clk 0:02:03.4]} 19. Nxe7+ {[%clk 0:01:00.5]} 19...
Qxe7 {[%clk 0:02:01.1]} 20. Qg4 {[%clk 0:00:58.3]} 20... h6 {[%clk 0:01:44.3]}
21. h4 {[%clk 0:00:55]} 21... Nh7 {[%clk 0:01:38.7]} 22. Bxh6 {[%clk 0:00:29.2]}
22... Kh8 {[%clk 0:01:38.3]} 23. Bg5 {[%clk 0:00:18.5]} 23... Qc5+ {[%clk
0:01:36.9]} 24. Kh1 {[%clk 0:00:17.4]} 24... Rae8 {[%clk 0:01:24.1]} 25. Rg1
{[%clk 0:00:16.3]} 25... Rf7 {[%clk 0:01:08.6]} 26. Qh5 {[%clk 0:00:16.1]} 26...
Ref8 {[%clk 0:00:56.1]} 27. Raf1 {[%clk 0:00:16]} 27... Nd4 {[%clk 0:00:48.2]}
28. Qg6 {[%clk 0:00:14.7]} 28... Nxf5 {[%clk 0:00:42.8]} 29. h5 {[%clk
0:00:09.8]} 29... Ng3+ {[%clk 0:00:42.9]} 30. Rxg3 {[%clk 0:00:08.6]} 30...
Rxf1+ {[%clk 0:00:42.5]} 31. Kh2 {[%clk 0:00:09.1]} 31... Qf2+ {[%clk 0:00:39]}
32. Rg2 {[%clk 0:00:08.8]} 32... Qf5 {[%clk 0:00:39.2]} 33. Qxf5 {[%clk
0:00:07.6]} 33... R8xf5 {[%clk 0:00:39.4]} 34. Nc2 {[%clk 0:00:07.1]} 34... Nxg5
{[%clk 0:00:38.5]} 0-1

[Event "Early-Titled-Tuesday-Blitz-September-26-2023"]
[Site "Chess.com"]
[Date "2023.09.26"]
[Round "2"]
[White "Rainbow2014"]
[Black "Juicy_Fork"]
[Result "1-0"]
[WhiteElo "2323"]
[BlackElo "2490"]
[TimeControl "180+1"]
[EndTime "8:17:08 PDT"]
[Termination "Rainbow2014 won on time"]

1. e4 {[%clk 0:03:00.9]} 1... e5 {[%clk 0:02:55.5]} 2. Nf3 {[%clk 0:03:00.9]}
2... Nc6 {[%clk 0:02:53.2]} 3. Bb5 {[%clk 0:03:00.9]} 3... a6 {[%clk 0:02:53.2]}
4. Ba4 {[%clk 0:03:00.8]} 4... d6 {[%clk 0:02:51.7]} 5. c3 {[%clk 0:03:00]} 5...
Bd7 {[%clk 0:02:49.6]} 6. d4 {[%clk 0:02:57.3]} 6... g6 {[%clk 0:02:36.2]} 7.
O-O {[%clk 0:02:49.1]} 7... Bg7 {[%clk 0:02:34.9]} 8. d5 {[%clk 0:02:43.5]} 8...
Nce7 {[%clk 0:02:34.6]} 9. Bxd7+ {[%clk 0:02:44.4]} 9... Qxd7 {[%clk 0:02:35.2]}
10. c4 {[%clk 0:02:45.3]} 10... h6 {[%clk 0:02:34.5]} 11. Nc3 {[%clk 0:02:46]}
11... f5 {[%clk 0:02:34.9]} 12. b4 {[%clk 0:02:44.3]} 12... Nf6 {[%clk
0:02:33.8]} 13. c5 {[%clk 0:02:43.9]} 13... fxe4 {[%clk 0:02:26.4]} 14. Nd2
{[%clk 0:02:44]} 14... dxc5 {[%clk 0:02:26.7]} 15. Ndxe4 {[%clk 0:02:41.8]}
15... cxb4 {[%clk 0:02:23.7]} 16. Nxf6+ {[%clk 0:02:37.5]} 16... Bxf6 {[%clk
0:02:24.6]} 17. Ne4 {[%clk 0:02:37.9]} 17... Bg7 {[%clk 0:02:18.7]} 18. d6
{[%clk 0:02:38.4]} 18... Nf5 {[%clk 0:02:16.1]} 19. dxc7 {[%clk 0:02:37.5]}
19... Qxc7 {[%clk 0:02:13]} 20. Qa4+ {[%clk 0:02:30]} 20... Qc6 {[%clk
0:01:05.5]} 21. Qxb4 {[%clk 0:02:28.9]} 21... Bf8 {[%clk 0:01:03.2]} 22. Qe1
{[%clk 0:02:26.7]} 22... Be7 {[%clk 0:00:56.7]} 23. Bb2 {[%clk 0:02:24.9]} 23...
O-O {[%clk 0:00:52.1]} 24. Bxe5 {[%clk 0:02:24.6]} 24... Rae8 {[%clk 0:00:47.7]}
25. Rc1 {[%clk 0:02:14.6]} 25... Qe6 {[%clk 0:00:45.8]} 26. Bb2 {[%clk
0:01:52.7]} 26... Rf7 {[%clk 0:00:15.8]} 27. Qc3 {[%clk 0:01:43.7]} 27... Ng7
{[%clk 0:00:15.8]} 28. Rce1 {[%clk 0:01:31.4]} 28... Qc6 {[%clk 0:00:13.8]} 29.
Qxc6 {[%clk 0:01:26.1]} 29... bxc6 {[%clk 0:00:13.7]} 30. Rc1 {[%clk 0:01:13.5]}
30... Rc8 {[%clk 0:00:11.2]} 31. Rfd1 {[%clk 0:01:08.9]} 31... Bd8 {[%clk
0:00:03]} 32. Nd6 {[%clk 0:01:07.7]} 32... Rb8 {[%clk 0:00:01.3]} 33. Nxf7
{[%clk 0:01:07.1]} 33... Kxf7 {[%clk 0:00:02.2]} 34. Rd7+ {[%clk 0:01:05]} 34...
Ke6 {[%clk 0:00:01.2]} 35. Rxg7 {[%clk 0:00:59.3]} 35... Rxb2 {[%clk 0:00:01.4]}
36. Rxg6+ {[%clk 0:00:53.1]} 36... Bf6 {[%clk 0:00:01.5]} 37. h4 {[%clk
0:00:46.5]} 1-0